[Event "Niedersachsen-ch A 2024"]
[Site "Verden Aller"]
[Date "2024.01.06"]
[Round "5.34"]
[White "Burnus, Finn Crispin"]
[Black "Poelig, Juergen"]
[Result "1-0"]
[ECO "D32"]
[WhiteElo "1655"]
[BlackElo "1819"]
[Annotator "NA RC"]
[PlyCount "105"]
[EventDate "2024.01.01"]
[EventType "swiss"]
[EventCountry "GER"]
[SourceTitle "playchess.com"]
[Source "ChessBase"]
[SourceQuality "1"]
[TimeControl "40/5400+30:1800+30"]

1. d4 {[%emt 0:00:04]} d5 {[%emt 0:00:02]} 2. c4 {[%emt 0:00:08]} e6 {[%emt 0:00:02]} 3. Nc3 {[%emt 0:00:10]} c5 {[%emt 0:00:15]} 4. cxd5 {[%emt 0:00:26]} exd5 {[%emt 0:00:06]} 5. Nf3 {[%emt 0:06:16]} Nc6 {[%emt 0:01:43]} 6. e3 {[%emt 0:09:12]} Nf6 {[%emt 0:00:46]} 7. Be2 {[%emt 0:00:56]} Bd6 {[%emt 0:00:48]} 8. O-O {[%emt 0:01:09]} O-O {[%emt 0:00:02]} 9. Nb5 {[%emt 0:02:19]} Be7 {[%emt 0:03:06]} 10. dxc5 {[%emt 0:00:15]} Bxc5 {[%emt 0:00:02]} 11. Nbd4 {[%emt 0:00:44]} Bg4 {[%emt 0:01:59]} 12. Nxc6 {[%emt 0:03:31]} bxc6 {[%emt 0:00:25]} 13. Nd4 {[%emt 0:04:12]} Bd7 {[%emt 0:06:39]} 14. b3 {[%emt 0:04:53]} Re8 {[%emt 0:13:21]} 15. Bb2 {[%emt 0:03:17]} Bd6 {[%emt 0:09:46]} 16. Rc1 {[%emt 0:06:18]} Rc8 {[%emt 0:05:19]} 17. Bf3 {[%emt 0:55:10]} Ne4 {[%emt 0:06:25]} 18. Bg4 {[%emt 0:00:00]} Qh4 {[%emt 0:16:58]} 19. h3 {[%emt 0:00:00]} Bxg4 {[%emt 0:08:53]} 20. Qxg4 {[%emt 0:00:00]} Qxg4 {[%emt 0:03:26]} 21. hxg4 {[%emt 0:00:00]} c5 {[%emt 0:02:12]} 22. Nb5 {[%emt 0:00:00]} Bb8 {[%emt 0:00:43]} 23. Rfd1 {[%emt 0:00:00]} Red8 {[%emt 0:03:35]} 24. f3 {[%emt 0:00:00]} Ng5 {[%emt 0:03:56]} 25. Kf2 {[%emt 0:00:00]} f6 {[%emt 0:02:34]} 26. Nc3 {[%emt 0:00:00]} d4 {[%emt 0:01:40]} 27. Na4 {[%emt 0:00:00]} dxe3+ {[%emt 0:01:55]} 28. Kxe3 {[%emt 0:00:00]} Rxd1 {[%emt 0:02:03]} 29. Rxd1 {[%emt 0:00:00]} Ne6 {[%emt 0:01:08]} 30. Kf2 {[%emt 0:00:00]} Kf7 {[%emt 0:01:36]} 31. Ba3 {[%emt 0:00:21]} a6 {[%emt 0:01:43]} 32. Nb6 {[%emt 0:02:33]} Rc6 {[%emt 0:01:01]} 33. Rd7+ {[%emt 0:00:22]} Kg6 {[%emt 0:01:02]} 34. Rb7 {[%emt 0:01:34]} Be5 {[%emt 0:00:27]} 35. Nd5 {[%emt 0:01:31]} Rd6 {[%emt 0:01:06]} 36. Ne7+ {[%emt 0:01:28]} Kg5 {[%emt 0:00:01]} 37. Bc1+ {[%emt 0:00:12]} Bf4 {[%emt 0:00:49]} 38. Bxf4+ {[%emt 0:00:55]} Kxf4 {[%emt 0:00:01]} 39. g3+ {[%emt 0:00:37]} Ke5 {[%emt 0:00:05]} 40. Ke3 {[%emt 0:00:18]} Rd1 {[%emt 0:02:08]} 41. Nf5 {[%emt 0:07:03]} Ra1 {[%emt 0:03:22]} 42. Rb6 {[%emt 0:01:34]} g5 {[%emt 0:08:53]} 43. Rxa6 {[%emt 0:00:59]} h5 {[%emt 0:03:53]} 44. b4 {[%emt 0:09:40]} hxg4 {[%emt 0:03:05]} 45. fxg4 {[%emt 0:00:06]} Rc1 {[%emt 0:05:57]} 46. Ra5 {[%emt 0:03:20]} Rc3+ {[%emt 0:02:40]} 47. Kd2 {[%emt 0:06:01]} Rc4 {[%emt 0:00:06]} 48. bxc5 {[%emt 0:00:08]} Nxc5 {[%emt 0:02:31]} 49. Ne3 {[%emt 0:00:09]} Rd4+ {[%emt 0:00:26]} 50. Ke2 {[%emt 0:00:51]} Kd6 {[%emt 0:02:20]} 51. Nf5+ {[%emt 0:00:09]} Kd5 {[%emt 0:00:01]} 52. Nxd4 {[%emt 0:00:10]} Kxd4 {[%emt 0:00:07]} 53. Rxc5 {[%emt 0:07:59]} 1-0

[Event "Niedersachsen-ch A 2024"]
[Site "Verden Aller"]
[Date "2024.01.06"]
[Round "5.35"]
[White "Stiller, Maximilian"]
[Black "Vormann, Dirk"]
[Result "1/2-1/2"]
[ECO "D32"]
[WhiteElo "1786"]
[BlackElo "1854"]
[Annotator "NA RC"]
[PlyCount "58"]
[EventDate "2024.01.01"]
[EventType "swiss"]
[EventCountry "GER"]
[SourceTitle "playchess.com"]
[Source "ChessBase"]
[SourceQuality "1"]
[TimeControl "40/5400+30:1800+30"]

1. Nf3 {[%emt 0:10:25]} d5 {[%emt 0:00:22]} 2. e3 {[%emt 0:00:22]} Nf6 {[%emt 0:00:32]} 3. c4 {[%emt 0:00:10]} e6 {[%emt 0:00:15]} 4. Nc3 {[%emt 0:00:16]} c5 {[%emt 0:00:26]} 5. cxd5 {[%emt 0:00:16]} exd5 {[%emt 0:00:17]} 6. d4 {[%emt 0:00:08]} Nc6 {[%emt 0:01:41]} 7. Be2 {[%emt 0:01:43]} Be7 {[%emt 0:00:18]} 8. O-O {[%emt 0:00:41]} O-O {[%emt 0:00:03]} 9. b3 {[%emt 0:00:25]} Bf5 {[%emt 0:02:46]} 10. Bb2 {[%emt 0:00:40]} Ne4 {[%emt 0:02:50]} 11. dxc5 {[%emt 0:06:20]} Nxc3 {[%emt 0:01:32]} 12. Bxc3 {[%emt 0:00:11]} Bxc5 {[%emt 0:00:37]} 13. Nd4 {[%emt 0:09:46]} Be6 {[%emt 0:02:33]} 14. Bg4 {[%emt 0:13:21]} Qe7 {[%emt 0:05:42]} 15. Bxe6 {[%emt 0:12:00]} fxe6 {[%emt 0:00:15]} 16. Qg4 {[%emt 0:00:46]} Nxd4 {[%emt 0:04:01]} 17. Bxd4 {[%emt 0:01:04]} Bxd4 {[%emt 0:00:46]} 18. Qxd4 {[%emt 0:00:30]} b6 {[%emt 0:01:32]} 19. Rac1 {[%emt 0:04:30]} Rac8 {[%emt 0:00:27]} 20. Rc3 {[%emt 0:04:55]} Rc7 {[%emt 0:01:23]} 21. Rfc1 {[%emt 0:06:50]} Rfc8 {[%emt 0:00:39]} 22. Qe5 {[%emt 0:03:25]} Rxc3 {[%emt 0:00:15]} 23. Rxc3 {[%emt 0:00:12]} Rxc3 {[%emt 0:00:05]} 24. Qxc3 {[%emt 0:00:08]} Qa3 {[%emt 0:12:19]} 25. Qc8+ {[%emt 0:05:52]} Kf7 {[%emt 0:00:08]} 26. Qc7+ {[%emt 0:06:31]} Qe7 {[%emt 0:00:05]} 27. Qe5 {[%emt 0:01:31]} Qf6 {[%emt 0:02:08]} 28. Qh5+ {[%emt 0:01:23]} Qg6 {[%emt 0:00:12]} 29. Qf3+ {[%emt 0:04:37]} Qf6 {[%emt 0:00:01]} 1/2-1/2

[Event "Niedersachsen-ch A 2024"]
[Site "Verden Aller"]
[Date "2024.01.06"]
[Round "5.36"]
[White "Trunz, Tamila"]
[Black "Arndt, Felix"]
[Result "0-1"]
[ECO "B07"]
[WhiteElo "1766"]
[BlackElo "1901"]
[Annotator "NA RC"]
[PlyCount "82"]
[EventDate "2024.01.01"]
[EventType "swiss"]
[EventCountry "GER"]
[SourceTitle "playchess.com"]
[Source "ChessBase"]
[SourceQuality "1"]
[TimeControl "40/5400+30:1800+30"]

1. e4 {[%emt 0:00:03]} d6 {[%emt 0:00:04]} 2. d4 {[%emt 0:00:09]} Nf6 {[%emt 0:00:10]} 3. Nc3 {[%emt 0:00:10]} c6 {[%emt 0:00:13]} 4. Nf3 {[%emt 0:04:13]} Bg4 {[%emt 0:01:21]} 5. Be2 {[%emt 0:02:22]} Qa5 {[%emt 0:01:26]} 6. Bd2 {[%emt 0:02:10]} Qc7 {[%emt 0:00:10]} 7. Bf4 {[%emt 0:03:59]} Nbd7 {[%emt 0:01:29]} 8. h3 {[%emt 0:06:15]} Bxf3 {[%emt 0:00:11]} 9. Bxf3 {[%emt 0:00:06]} e5 {[%emt 0:00:11]} 10. Be3 {[%emt 0:01:40]} Be7 {[%emt 0:01:42]} 11. Qd2 {[%emt 0:04:06]} O-O {[%emt 0:00:32]} 12. g4 {[%emt 0:02:34]} b5 {[%emt 0:03:53]} 13. g5 {[%emt 0:02:23]} Ne8 {[%emt 0:00:13]} 14. h4 {[%emt 0:00:53]} Rd8 {[%emt 0:04:33]} 15. Ne2 {[%emt 0:06:39]} exd4 {[%emt 0:01:38]} 16. Nxd4 {[%emt 0:00:54]} Ne5 {[%emt 0:00:23]} 17. Be2 {[%emt 0:01:22]} d5 {[%emt 0:02:19]} 18. O-O-O {[%emt 0:09:23]} Nc4 {[%emt 0:09:13]} 19. Bxc4 {[%emt 0:03:21]} dxc4 {[%emt 0:00:10]} 20. Qe1 {[%emt 0:05:08]} Bc5 {[%emt 0:10:41]} 21. g6 {[%emt 0:01:22]} hxg6 {[%emt 0:06:21]} 22. h5 {[%emt 0:01:49]} g5 {[%emt 0:03:04]} 23. h6 {[%emt 0:02:03]} g6 {[%emt 0:01:23]} 24. Qg1 {[%emt 0:17:53]} c3 {[%emt 0:04:44]} 25. Qxg5 {[%emt 0:02:05]} cxb2+ {[%emt 0:00:39]} 26. Kb1 {[%emt 0:00:18]} Be7 {[%emt 0:04:37]} 27. h7+ {[%emt 0:01:24]} Kh8 {[%emt 0:00:57]} 28. Qg2 {[%emt 0:00:59]} Nd6 {[%emt 0:06:42]} 29. Bh6 {[%emt 0:05:22]} Nc4 {[%emt 0:03:27]} 30. f4 {[%emt 0:03:22]} Na3+ {[%emt 0:09:50]} 31. Kxb2 {[%emt 0:00:08]} Qa5 {[%emt 0:01:43]} 32. Rh3 {[%emt 0:02:52]} Nc4+ {[%emt 0:01:28]} 33. Kb1 {[%emt 0:00:13]} Rxd4 {[%emt 0:00:15]} 34. Qe2 {[%emt 0:00:49]} Rxd1+ {[%emt 0:06:02]} 35. Qxd1 {[%emt 0:09:31]} Rd8 {[%emt 0:00:22]} 36. Qd4+ {[%emt 0:00:30]} f6 {[%emt 0:01:27]} 37. a3 Nxa3+ 38. Kb2 {[%emt 0:01:00]} Nc4+ {[%emt 0:06:43]} 39. Kb1 {[%emt 0:00:30]} Qb4+ {[%emt 0:09:44]} 40. Ka2 {[%emt 0:00:00]} Qa4+ {[%emt 0:00:00]} 41. Kb1 {[%emt 0:25:17]} Na3+ {[%emt 0:24:18]} 0-1

[Event "Niedersachsen-ch A 2024"]
[Site "Verden Aller"]
[Date "2024.01.06"]
[Round "6.2"]
[White "Stotyn, Fabian"]
[Black "Kiesel, Lucas"]
[Result "1-0"]
[ECO "B09"]
[WhiteElo "2139"]
[BlackElo "1987"]
[Annotator "RC"]
[PlyCount "113"]
[EventDate "2024.01.01"]
[EventType "swiss"]
[EventCountry "GER"]
[SourceTitle "playchess.com"]
[Source "ChessBase"]
[SourceQuality "1"]
[TimeControl "40/5400+30:1800+30"]

1. e4 {[%emt 0:00:07]} d6 {[%emt 0:00:03]} 2. d4 {[%emt 0:00:16]} Nf6 {[%emt 0:00:05]} 3. Nc3 {[%emt 0:00:18]} g6 {[%emt 0:00:06]} 4. f4 {[%emt 0:00:13]} Bg7 {[%emt 0:00:18]} 5. Nf3 {[%emt 0:00:10]} O-O {[%emt 0:02:42]} 6. a4 {[%emt 0:01:27]} c5 {[%emt 0:07:35]} 7. d5 {[%emt 0:02:06]} e6 {[%emt 0:07:32]} 8. dxe6 {[%emt 0:00:31]} Bxe6 {[%emt 0:00:22]} 9. Be2 {[%emt 0:02:05]} Nc6 {[%emt 0:03:48]} 10. O-O {[%emt 1:28:17]} d5 {[%emt 1:12:59]} 11. e5 {[%emt 0:01:58]} Ne8 {[%emt 0:00:46]} 12. Ng5 {[%emt 0:03:39]} Nc7 {[%emt 0:00:38]} 13. Nxe6 {[%emt 0:11:11]} fxe6 {[%emt 0:00:05]} 14. Bg4 {[%emt 0:01:02]} Qe7 {[%emt 0:57:05]} 15. Nb5 {[%emt 0:06:07]} Nxb5 {[%emt 0:05:03]} 16. axb5 {[%emt 0:00:35]} Nd4 {[%emt 0:00:10]} 17. Qd3 {[%emt 0:00:50]} Rfe8 {[%emt 0:07:46]} 18. c3 {[%emt 0:00:41]} Nb3 {[%emt 0:02:46]} 19. Ra3 {[%emt 0:01:39]} c4 {[%emt 0:00:06]} 20. Qe3 {[%emt 0:00:49]} b6 {[%emt 0:01:33]} 21. Bd1 {[%emt 0:09:35]} Qd7 {[%emt 0:03:00]} 22. Bxb3 {[%emt 0:07:03]} Bf8 {[%emt 0:00:08]} 23. Qd2 {[%emt 0:01:08]} Bxa3 {[%emt 0:00:06]} 24. Bxc4 {[%emt 0:00:10]} Bc5+ {[%emt 0:02:57]} 25. Kh1 {[%emt 0:00:04]} Rad8 {[%emt 0:00:09]} 26. Bd3 {[%emt 0:00:20]} d4 {[%emt 0:06:51]} 27. c4 {[%emt 0:01:31]} Qe7 {[%emt 0:28:44]} 28. Rf3 {[%emt 0:03:24]} a6 {[%emt 0:02:42]} 29. bxa6 {[%emt 0:00:31]} Ra8 {[%emt 0:00:09]} 30. Rg3 {[%emt 0:08:54]} Kf7 {[%emt 0:04:10]} 31. Qc2 {[%emt 0:09:43]} Rg8 {[%emt 0:01:54]} 32. Qa4 {[%emt 0:03:03]} Qe8 {[%emt 0:22:10]} 33. Qb5 {[%emt 0:03:42]} Qc8 {[%emt 0:02:44]} 34. Rh3 {[%emt 0:04:53]} Rg7 {[%emt 0:01:12]} 35. Rf3 {[%emt 0:03:15]} Qxa6 {[%emt 0:08:39]} 36. Qd7+ {[%emt 0:01:20]} Be7 {[%emt 0:00:13]} 37. Qxd4 {[%emt 0:01:36]} Rd8 {[%emt 0:01:27]} 38. Qc3 {[%emt 0:00:37]} Qa4 {[%emt 0:03:11]} 39. b3 {[%emt 0:02:31]} Bb4 {[%emt 0:03:15]} 40. Qc2 {[%emt 0:00:32]} Qd7 {[%emt 0:02:24]} 41. h4 {[%emt 0:32:48]} Kg8 {[%emt 0:02:26]} 42. Kh2 {[%emt 0:00:00]} Be1 {[%emt 0:30:59]} 43. Kh3 {[%emt 0:00:00]} Qe7 {[%emt 0:01:44]} 44. g3 {[%emt 0:00:00]} Bb4 {[%emt 0:02:19]} 45. Qb2 {[%emt 0:00:00]} Qb7 {[%emt 0:00:55]} 46. Qe2 {[%emt 0:00:00]} Rgd7 {[%emt 0:01:23]} 47. Be4 {[%emt 0:00:00]} Qa7 {[%emt 0:00:37]} 48. Rf1 {[%emt 0:00:00]} Bc5 {[%emt 0:07:50]} 49. Qg4 {[%emt 0:00:00]} Re7 {[%emt 0:11:57]} 50. h5 {[%emt 0:00:00]} Qd7 {[%emt 0:01:12]} 51. f5 {[%emt 0:00:00]} exf5 {[%emt 0:00:43]} 52. Bxf5 {[%emt 0:00:00]} Qd4 {[%emt 0:00:21]} 53. Bf4 {[%emt 0:00:00]} Rg7 {[%emt 0:01:24]} 54. Be6+ {[%emt 0:00:46]} Kh8 {[%emt 0:00:11]} 55. h6 {[%emt 0:01:56]} Ra7 {[%emt 0:00:29]} 56. Bg5 {[%emt 0:01:09]} Be7 {[%emt 0:00:04]} 57. Qxd4 {[%emt 0:00:46]} 1-0

[Event "Niedersachsen-ch A 2024"]
[Site "Verden Aller"]
[Date "2024.01.06"]
[Round "6.3"]
[White "Hoellmann, Ludger"]
[Black "Ahlbrecht, Malte"]
[Result "1-0"]
[ECO "D11"]
[WhiteElo "2015"]
[BlackElo "1727"]
[Annotator "NA RC"]
[PlyCount "59"]
[EventDate "2024.01.01"]
[EventType "swiss"]
[EventCountry "GER"]
[SourceTitle "playchess.com"]
[Source "ChessBase"]
[SourceQuality "1"]
[TimeControl "40/5400+30:1800+30"]

1. d4 {[%emt 0:00:01]} Nf6 {[%emt 0:00:38]} 2. Nf3 {[%emt 0:00:21]} d5 {[%emt 0:00:04]} 3. g3 {[%emt 0:00:10]} Bf5 {[%emt 0:00:12]} 4. Bg2 {[%emt 0:00:14]} e6 {[%emt 0:00:10]} 5. c4 {[%emt 0:00:13]} c6 {[%emt 0:00:18]} 6. Nc3 {[%emt 0:00:18]} Be7 {[%emt 0:01:44]} 7. O-O {[%emt 0:08:29]} h6 {[%emt 0:04:49]} 8. b3 {[%emt 0:09:43]} O-O {[%emt 0:04:29]} 9. Bb2 {[%emt 0:01:00]} Nbd7 {[%emt 0:06:23]} 10. Nd2 {[%emt 0:10:06]} Qb6 {[%emt 0:11:34]} 11. e4 {[%emt 0:04:17]} dxe4 {[%emt 0:00:59]} 12. Ndxe4 {[%emt 0:00:26]} Nxe4 {[%emt 0:01:37]} 13. Nxe4 {[%emt 0:00:10]} Nf6 {[%emt 0:01:53]} 14. Nc5 {[%emt 0:14:27]} Bxc5 {[%emt 0:16:23]} 15. dxc5 {[%emt 0:00:06]} Qxc5 {[%emt 0:00:33]} 16. Bxf6 {[%emt 0:01:10]} gxf6 {[%emt 0:00:30]} 17. Qh5 {[%emt 0:00:03]} Qe5 {[%emt 0:33:43]} 18. Qxh6 {[%emt 0:10:24]} Bg6 {[%emt 0:03:30]} 19. h4 {[%emt 0:01:02]} Rad8 {[%emt 0:03:52]} 20. Rfe1 {[%emt 0:02:45]} Qh5 {[%emt 0:00:42]} 21. Qe3 {[%emt 0:00:14]} Qa5 {[%emt 0:06:57]} 22. Rad1 {[%emt 0:15:59]} Qxa2 {[%emt 0:00:00]} 23. Ra1 {[%emt 0:00:55]} Qb2 {[%emt 0:00:04]} 24. Rxa7 {[%emt 0:05:05]} Rd3 {[%emt 0:00:41]} 25. Qf4 {[%emt 0:06:06]} Rxb3 {[%emt 0:00:37]} 26. Be4 {[%emt 0:05:44]} Bxe4 {[%emt 0:00:31]} 27. Rxe4 {[%emt 0:00:47]} f5 {[%emt 0:00:17]} 28. Re5 {[%emt 0:00:54]} f6 {[%emt 0:00:44]} 29. Rxe6 {[%emt 0:00:18]} Kf7 {[%emt 0:00:26]} 30. Rxc6 {[%emt 0:00:32]} 1-0

[Event "Niedersachsen-ch A 2024"]
[Site "Verden Aller"]
[Date "2024.01.06"]
[Round "6.4"]
[White "Schulz, Jens"]
[Black "Witthaus, Joerg"]
[Result "1-0"]
[ECO "C42"]
[WhiteElo "2152"]
[BlackElo "2029"]
[Annotator "RC"]
[PlyCount "101"]
[EventDate "2024.01.01"]
[EventType "swiss"]
[EventCountry "GER"]
[SourceTitle "playchess.com"]
[Source "ChessBase"]
[SourceQuality "1"]
[TimeControl "40/5400+30:1800+30"]

1. e4 {[%emt 0:00:11]} e5 {[%emt 0:00:05]} 2. Nf3 {[%emt 0:00:16]} Nf6 {[%emt 0:00:05]} 3. Nxe5 {[%emt 0:00:05]} d6 {[%emt 0:00:08]} 4. Nf3 {[%emt 0:00:05]} Nxe4 {[%emt 0:00:04]} 5. Nc3 {[%emt 0:00:09]} Nf6 {[%emt 0:00:09]} 6. d4 {[%emt 0:04:57]} Be7 {[%emt 0:00:36]} 7. Bf4 {[%emt 0:10:42]} O-O {[%emt 0:10:43]} 8. Qd2 {[%emt 0:04:09]} c6 {[%emt 0:03:56]} 9. Bd3 {[%emt 0:00:21]} Re8 {[%emt 0:06:09]} 10. O-O-O {[%emt 0:06:32]} b5 {[%emt 0:01:50]} 11. Rde1 {[%emt 0:16:44]} Bg4 {[%emt 0:15:49]} 12. Ng5 {[%emt 0:04:36]} Nbd7 {[%emt 0:05:56]} 13. f3 {[%emt 0:12:40]} Bh5 {[%emt 0:03:09]} 14. h4 {[%emt 0:00:05]} Nf8 {[%emt 0:04:35]} 15. g4 {[%emt 0:07:46]} Bg6 {[%emt 0:00:09]} 16. Bg3 {[%emt 0:01:26]} b4 {[%emt 0:05:19]} 17. Nce4 {[%emt 0:04:35]} d5 {[%emt 0:00:58]} 18. Nxf6+ {[%emt 0:00:53]} Bxf6 {[%emt 0:01:53]} 19. Rxe8 {[%emt 0:03:09]} Qxe8 {[%emt 0:00:23]} 20. Bxg6 {[%emt 0:00:04]} hxg6 {[%emt 0:01:52]} 21. Re1 {[%emt 0:01:05]} Qd8 {[%emt 0:00:40]} 22. f4 {[%emt 0:01:14]} Qb6 {[%emt 0:08:04]} 23. Nf3 {[%emt 0:01:14]} Ne6 {[%emt 0:01:42]} 24. Bf2 {[%emt 0:00:18]} Rc8 {[%emt 0:04:03]} 25. Ne5 {[%emt 0:00:09]} Bxe5 {[%emt 0:02:05]} 26. dxe5 {[%emt 0:00:07]} Qa6 {[%emt 0:02:26]} 27. f5 {[%emt 0:05:44]} gxf5 {[%emt 0:03:46]} 28. gxf5 {[%emt 0:00:05]} Qxa2 {[%emt 0:00:11]} 29. Qxb4 {[%emt 0:00:17]} c5 {[%emt 0:02:56]} 30. Qb7 {[%emt 0:02:32]} Qa1+ {[%emt 0:00:14]} 31. Kd2 {[%emt 0:00:05]} Qa5+ {[%emt 0:00:04]} 32. b4 {[%emt 0:00:21]} Qc7 {[%emt 0:00:35]} 33. Qxc7 {[%emt 0:00:05]} Nxc7 {[%emt 0:00:07]} 34. Bxc5 {[%emt 0:00:11]} a6 {[%emt 0:07:11]} 35. Kd3 {[%emt 0:00:58]} g6 {[%emt 0:00:51]} 36. fxg6 {[%emt 0:02:20]} fxg6 {[%emt 0:00:03]} 37. Kd4 {[%emt 0:00:18]} a5 {[%emt 0:05:27]} 38. c3 {[%emt 0:00:56]} Nb5+ {[%emt 0:03:05]} 39. Kd3 {[%emt 0:04:19]} axb4 {[%emt 0:01:42]} 40. Bxb4 {[%emt 0:01:13]} Re8 {[%emt 0:00:18]} 41. e6 {[%emt 0:33:55]} Nc7 {[%emt 0:09:01]} 42. e7 {[%emt 0:00:00]} Kf7 {[%emt 0:01:01]} 43. Kd4 {[%emt 0:00:00]} Rh8 {[%emt 0:01:02]} 44. Ke5 {[%emt 0:00:00]} Rh5+ {[%emt 0:01:04]} 45. Kd6 {[%emt 0:00:00]} Ne8+ {[%emt 0:00:12]} 46. Kc6 {[%emt 0:00:00]} Rf5 {[%emt 0:01:30]} 47. Bc5 {[%emt 0:00:00]} Kg8 {[%emt 0:02:06]} 48. Bd4 {[%emt 0:00:00]} Kf7 {[%emt 0:00:13]} 49. Kd7 {[%emt 0:00:00]} Rf4 {[%emt 0:01:27]} 50. Re2 {[%emt 0:00:00]} Rf5 {[%emt 0:00:29]} 51. Kd8 {[%emt 0:00:00]} 1-0

[Event "Niedersachsen-ch A 2024"]
[Site "Verden Aller"]
[Date "2024.01.06"]
[Round "6.5"]
[White "Peters, Tom"]
[Black "Boerma, Daniel"]
[Result "1-0"]
[ECO "C41"]
[WhiteElo "2102"]
[BlackElo "1905"]
[Annotator "NA RC"]
[PlyCount "79"]
[EventDate "2024.01.01"]
[EventType "swiss"]
[EventCountry "GER"]
[SourceTitle "playchess.com"]
[Source "ChessBase"]
[SourceQuality "1"]
[TimeControl "40/5400+30:1800+30"]

1. e4 {[%emt 0:00:02]} d6 {[%emt 0:00:10]} 2. d4 {[%emt 0:00:07]} Nf6 {[%emt 0:00:06]} 3. Nc3 {[%emt 0:00:07]} Nbd7 {[%emt 0:00:06]} 4. Nf3 {[%emt 0:00:08]} e5 {[%emt 0:00:12]} 5. g4 {[%emt 0:00:06]} Nxg4 {[%emt 0:02:15]} 6. Rg1 {[%emt 0:00:14]} exd4 {[%emt 0:01:20]} 7. Nxd4 {[%emt 0:01:07]} Nde5 {[%emt 0:00:31]} 8. h3 {[%emt 0:02:32]} c5 {[%emt 0:02:25]} 9. hxg4 {[%emt 0:20:46]} cxd4 {[%emt 0:01:10]} 10. Nb5 {[%emt 0:00:11]} a6 {[%emt 0:08:09]} 11. Nxd4 {[%emt 0:00:10]} h5 {[%emt 0:03:41]} 12. gxh5 {[%emt 0:09:26]} Qh4 {[%emt 0:00:37]} 13. Be3 {[%emt 0:17:25]} Ng4 {[%emt 0:04:38]} 14. Qf3 {[%emt 0:04:42]} Nxe3 {[%emt 0:00:49]} 15. Qxe3 {[%emt 0:00:04]} Rxh5 {[%emt 0:01:33]} 16. O-O-O {[%emt 0:01:31]} g6 {[%emt 0:02:06]} 17. Kb1 {[%emt 0:00:34]} Bd7 {[%emt 0:04:06]} 18. Bc4 {[%emt 0:02:23]} Qf6 {[%emt 0:03:01]} 19. Bd5 {[%emt 0:04:30]} Bg7 {[%emt 0:02:07]} 20. Bxb7 {[%emt 0:09:00]} Rb8 {[%emt 0:00:09]} 21. Bd5 {[%emt 0:00:05]} Kf8 {[%emt 0:02:06]} 22. c3 {[%emt 0:01:41]} a5 {[%emt 0:02:18]} 23. Rg3 {[%emt 0:02:12]} Bh6 {[%emt 0:10:38]} 24. Rf3 {[%emt 0:04:39]} Qe7 {[%emt 0:05:01]} 25. Qd3 {[%emt 0:02:45]} f6 {[%emt 0:03:32]} 26. Rg3 {[%emt 0:02:58]} Qh7 {[%emt 0:05:44]} 27. Rdg1 {[%emt 0:02:02]} Rg5 {[%emt 0:02:33]} 28. f4 {[%emt 0:00:40]} Rxg3 {[%emt 0:00:43]} 29. Qxg3 {[%emt 0:00:01]} Ke7 {[%emt 0:01:02]} 30. e5 {[%emt 0:05:02]} g5+ {[%emt 0:02:50]} 31. Ka1 {[%emt 0:00:01]} gxf4 {[%emt 0:02:09]} 32. exf6+ {[%emt 0:00:06]} Kd8 {[%emt 0:03:37]} 33. Qh2 {[%emt 0:01:12]} Kc7 {[%emt 0:00:37]} 34. a3 {[%emt 0:02:33]} Rh8 {[%emt 0:01:15]} 35. Qe2 {[%emt 0:00:11]} f3 {[%emt 0:01:25]} 36. Qxf3 {[%emt 0:00:46]} Bf8 {[%emt 0:01:57]} 37. Qf1 {[%emt 0:01:36]} Qh3 {[%emt 0:00:58]} 38. Qa6 {[%emt 0:00:53]} Qe3 {[%emt 0:00:49]} 39. Qxa5+ {[%emt 0:00:47]} Kc8 {[%emt 0:00:16]} 40. Qa8+ {[%emt 0:00:10]} 1-0

[Event "Niedersachsen-ch A 2024"]
[Site "Verden Aller"]
[Date "2024.01.06"]
[Round "6.6"]
[White "Sickmann, Lisa"]
[Black "Celik, Abdullah"]
[Result "1/2-1/2"]
[ECO "B19"]
[WhiteElo "1961"]
[BlackElo "2081"]
[Annotator "NA RC"]
[PlyCount "112"]
[EventDate "2024.01.01"]
[EventType "swiss"]
[EventCountry "GER"]
[SourceTitle "playchess.com"]
[Source "ChessBase"]
[SourceQuality "1"]
[TimeControl "40/5400+30:1800+30"]

1. e4 {[%emt 0:00:34]} c6 {[%emt 0:00:03]} 2. d4 {[%emt 0:00:23]} d5 {[%emt 0:00:03]} 3. Nc3 {[%emt 0:00:08]} dxe4 {[%emt 0:00:04]} 4. Nxe4 {[%emt 0:00:03]} Bf5 {[%emt 0:00:04]} 5. Ng3 {[%emt 0:00:06]} Bg6 {[%emt 0:00:03]} 6. h4 {[%emt 0:00:04]} h6 {[%emt 0:00:03]} 7. Nf3 {[%emt 0:00:07]} e6 {[%emt 0:00:04]} 8. Ne5 {[%emt 0:00:28]} Bh7 {[%emt 0:00:04]} 9. Qh5 {[%emt 0:02:35]} Qc7 {[%emt 0:02:32]} 10. Bd3 {[%emt 0:02:22]} Bxd3 {[%emt 0:01:19]} 11. Nxd3 {[%emt 0:00:26]} Nf6 {[%emt 0:01:24]} 12. Qe2 {[%emt 0:00:52]} Bd6 {[%emt 0:06:43]} 13. Ne4 {[%emt 0:00:55]} Nxe4 {[%emt 0:00:31]} 14. Qxe4 {[%emt 0:00:05]} Nd7 {[%emt 0:00:43]} 15. Bd2 {[%emt 0:00:46]} O-O-O {[%emt 0:07:48]} 16. O-O-O {[%emt 0:00:20]} Nf6 {[%emt 0:00:52]} 17. Qe2 {[%emt 0:01:44]} Nd5 {[%emt 0:04:38]} 18. c4 {[%emt 0:04:18]} Nf4 {[%emt 0:00:48]} 19. Nxf4 {[%emt 0:01:18]} Bxf4 {[%emt 0:00:05]} 20. Qe4 {[%emt 0:04:04]} Bxd2+ {[%emt 0:03:25]} 21. Rxd2 {[%emt 0:00:12]} Qa5 {[%emt 0:00:14]} 22. a3 {[%emt 0:00:40]} Qa4 {[%emt 0:02:25]} 23. Qc2 {[%emt 0:00:51]} Qxc2+ {[%emt 0:00:19]} 24. Kxc2 {[%emt 0:00:08]} a5 {[%emt 0:00:47]} 25. h5 {[%emt 0:00:34]} Kc7 {[%emt 0:02:24]} 26. b3 {[%emt 0:00:48]} a4 {[%emt 0:10:52]} 27. b4 {[%emt 0:01:25]} b5 {[%emt 0:00:21]} 28. c5 {[%emt 0:01:19]} Rd5 {[%emt 0:00:07]} 29. f4 {[%emt 0:05:13]} Rhd8 {[%emt 0:00:20]} 30. Kc3 {[%emt 0:00:36]} R8d7 {[%emt 0:09:01]} 31. g4 {[%emt 0:02:28]} Kd8 {[%emt 0:00:05]} 32. Rg1 {[%emt 0:04:25]} Ke7 {[%emt 0:01:39]} 33. g5 {[%emt 0:05:50]} Rf5 {[%emt 0:08:23]} 34. Rg4 {[%emt 0:07:32]} Rdd5 {[%emt 0:04:59]} 35. Rdg2 {[%emt 0:00:41]} hxg5 {[%emt 0:06:21]} 36. Rxg5 {[%emt 0:01:02]} Rxf4 {[%emt 0:02:54]} 37. Rxd5 {[%emt 0:00:09]} exd5 {[%emt 0:00:05]} 38. Rxg7 {[%emt 0:00:32]} Rf3+ {[%emt 0:00:03]} 39. Kb2 {[%emt 0:00:23]} Rb3+ {[%emt 0:00:19]} 40. Ka2 {[%emt 0:00:05]} Rh3 {[%emt 0:00:23]} 41. Rh7 {[%emt 0:35:25]} Rh2+ {[%emt 0:30:06]} 42. Kb1 {[%emt 0:00:13]} Re2 {[%emt 0:10:45]} 43. h6 {[%emt 0:01:30]} Kf6 {[%emt 0:07:12]} 44. Rh8 {[%emt 0:48:51]} Re6 {[%emt 0:10:24]} 45. Rg8 {[%emt 0:00:00]} Re1+ {[%emt 0:00:00]} 46. Kc2 {[%emt 0:00:00]} Rh1 {[%emt 0:00:00]} 47. Rc8 {[%emt 0:00:00]} Kf5 {[%emt 0:00:00]} 48. Rxc6 {[%emt 0:00:00]} Ke4 {[%emt 0:00:00]} 49. Rf6 {[%emt 0:00:00]} Kxd4 {[%emt 0:00:00]} 50. c6 {[%emt 0:00:00]} Rh2+ {[%emt 0:00:00]} 51. Kd1 {[%emt 0:00:00]} Ke3 {[%emt 0:00:00]} 52. c7 {[%emt 0:00:00]} Rh1+ {[%emt 0:00:00]} 53. Kc2 {[%emt 0:00:00]} Rh2+ {[%emt 0:00:00]} 54. Kd1 {[%emt 0:00:00]} Rh1+ {[%emt 0:00:00]} 55. Kc2 {[%emt 0:00:00]} Rh2+ {[%emt 0:00:00]} 56. Kd1 {[%emt 0:00:00]} Rh1+ {[%emt 0:00:00]} 1/2-1/2